Workbook

Sheet паспорт
A1: ПАТ "УКРТРАНСГАЗ" | G1: ПАСПОРТ ФІЗИКО-ХІМІЧНИХ ПОКАЗНИКІВ ПРИРОДНОГО ГАЗУ № 687
A2: Філія "УМГ "ХАРКІВТРАНСГАЗ" | G2: переданого Херсонським ЛВУМГ та прийнятого ПАТ " Херсонгаз" точка відбору ГРС Верхній Рогачик
A3: Херсонське ЛВУМГ
A4: Вимірювальна хіміко-аналітична лабораторія | M4: Маршрут № 687
A5: Свідоцтво про атестацію РЧ 161/2015 дійсне до 01.01.2019 р. | K5: по газопроводу ШДКРІ - Запорізька ГРЕС - Мелітополь | V5: за період з 01.02.2017р. по 28.02.2017р.
A7: Число місяця | B7: Компонентний склад, % мол. | N7: Фізико-хімічні показники газу обчислені на основі компонентного складу, 101,325 кПа | X7: Температура точки роси за вологою (Р = 3.92 МПа), ºС | Y7: Температура точки роси за вуглеводнями, ºС | Z7: Вміст сірководню, г/м3 | AA7: Вміст меркаптанової сірки, г/м3 | AB7: Вміст механічних домішок, г/м3
N8: Густина абсолютна, кг/м3,при 20 ºС, | O8: Температура вимірювання/згоряння при 20/25°С
B9: метан, С1 | C9: етан, С2 | D9: пропан, С3 | E9: ізо-бутан, і-С4 | F9: н-бутан, н-С4 | G9: нео-пентан, нео-С5 | H9: ізо-пентан, і-С5 | I9: н-пентан, н-С5 | J9: гексани та вищі, С6+ | K9: кисень, О2 | L9: азот, N2 | M9: діоксид вуглецю, CО2 | O9: Теплота згоряння нижча | R9: Теплота згоряння вища | U9: Число Воббе вище
O10: ккал/м3 | P10: МДж/м3 | Q10: кВт⋅год/м3 | R10: ккал/м3 | S10: МДж/м3 | T10: кВт⋅год/м3 | U10: ккал/м3 | V10: МДж/м3 | W10: кВт⋅год/м3
A11: 1 | B11: 95.6914 | C11: 2.2706 | D11: 0.7107 | E11: 0.1076 | F11: 0.1178 | G11: 0.0014 | H11: 0.0259 | I11: 0.0204 | J11: 0.015 | K11: 0.0084 | L11: 0.8509 | M11: 0.18 | N11: 0.7018 | O11: 8189 | P11: 34.287 | Q11: =P11/3.6 -> 9.524166667 | R11: 9077 | S11: 38 | T11: =S11/3.6 -> 10.55555556 | U11: =V11/0.0041868 -> 11890.91908 | V11: 49.7849 | W11: =V11/3.6 -> 13.82913889 | X11: -24 | Y11: -18.5 | AC11: =SUM(B11:M11)+$K$39+$N$39 -> 100.0001
A12: 2 | B12: 95.7253 | C12: 2.245 | D12: 0.7021 | E12: 0.1063 | F12: 0.1153 | G12: 0.0014 | H12: 0.0262 | I12: 0.0203 | J12: 0.0138 | K12: 0.0074 | L12: 0.8583 | M12: 0.1787 | N12: 0.7014 | O12: 8185 | P12: 34.27 | Q12: 9.519444444 | R12: 9072 | S12: 37.98 | T12: 10.55 | U12: 11887.98127 | V12: 49.7726 | W12: 13.82572222 | X12: -24.1 | Y12: -18.5 | AC12: 100.0001
A13: 3 | B13: 95.9521 | C13: 2.1234 | D13: 0.6635 | E13: 0.1015 | F13: 0.1079 | G13: 0.001 | H13: 0.0241 | I13: 0.0188 | J13: 0.0083 | K13: 0.0082 | L13: 0.8253 | M13: 0.1658 | N13: 0.6995 | O13: 8172 | P13: 34.21 | Q13: 9.502777778 | R13: 9058 | S13: 37.92 | T13: 10.53333333 | U13: 11885.42562 | V13: 49.7619 | W13: 13.82275 | X13: -24 | Y13: -18.7 | AC13: 99.9999 | AD13: =IF(AC13=100,"ОК"," ") -> 
A14: 4 | O14: 8172 | P14: 34.21 | Q14: 9.502777778 | R14: 9058 | S14: 37.92 | T14: 10.53333333 | U14: 11884.97182 | V14: 49.76 | W14: 13.82222222 | AC14: 0 | AD14: =IF(AC14=100,"ОК"," ") -> 
A15: 5 | O15: 8172 | P15: 34.21 | Q15: 9.502777778 | R15: 9058 | S15: 37.92 | T15: 10.53333333 | U15: 11884.97182 | V15: 49.76 | W15: 13.82222222 | AC15: 0
A16: 6 | B16: 96.3382 | C16: 1.9053 | D16: 0.5948 | E16: 0.0936 | F16: 0.0944 | G16: 0.0008 | H16: 0.0196 | I16: 0.0154 | J16: 0.0053 | K16: 0.0101 | L16: 0.7737 | M16: 0.1489 | N16: 0.6963 | O16: 8148 | P16: 34.11 | Q16: 9.475 | R16: 9032 | S16: 37.816 | T16: 10.50444444 | U16: 11879.38282 | V16: 49.7366 | W16: 13.81572222 | X16: -23.2 | Y16: -17.3 | AB16: відсутні | AC16: 100.0001
A17: 7 | B17: 96.2467 | C17: 1.9533 | D17: 0.6049 | E17: 0.0938 | F17: 0.0951 | G17: 0.0013 | H17: 0.0195 | I17: 0.0143 | J17: 0.0122 | K17: 0.0136 | L17: 0.7905 | M17: 0.1549 | N17: 0.6971 | O17: 8152.77 | P17: 34.13 | Q17: 9.480555556 | R17: 9041.54 | S17: 37.86 | T17: 10.51666667 | U17: 11884.78 | V17: 49.76 | W17: 13.82222222 | X17: -25.1 | Y17: -18.8 | AC17: 100.0001
A18: 8 | B18: 96.3822 | C18: 1.8823 | D18: 0.5735 | E18: 0.0897 | F18: 0.0894 | G18: 0.0012 | H18: 0.0178 | I18: 0.0131 | J18: 0.0119 | K18: 0.0113 | L18: 0.7876 | M18: 0.1399 | N18: 0.6959 | O18: 8143.36 | P18: 34.0946 | Q18: 9.470722222 | R18: 9031.55 | S18: 37.81 | T18: 10.50277778 | U18: 11882.2 | V18: 49.75 | W18: 13.81944444 | X18: -24.7 | Y18: -18.7 | Z18: < 0,0001 | AA18: 0.0017 | AC18: 99.9999
A19: 9 | B19: 95.623 | C19: 2.2736 | D19: 0.6829 | E19: 0.0964 | F19: 0.109 | G19: 0.0015 | H19: 0.0238 | I19: 0.0189 | J19: 0.0202 | K19: 0.0102 | L19: 0.9727 | M19: 0.1679 | N19: 0.7017 | O19: 8174.91 | P19: 34.23 | Q19: 9.508333333 | R19: 9064.66 | S19: 37.95 | T19: 10.54166667 | U19: 11876.3 | V19: 49.72 | W19: 13.81111111 | X19: -24.8 | Y19: -19.5 | AC19: 100.0001
A20: 10 | B20: 93.7109 | C20: 3.5377 | D20: 0.9443 | E20: 0.1087 | F20: 0.129 | G20: 0.0015 | H20: 0.0267 | I20: 0.0218 | J20: 0.0289 | K20: 0.0033 | L20: 1.2949 | M20: 0.1923 | N20: 0.715 | O20: 8269.42 | P20: 34.62 | Q20: 9.616666667 | R20: 9164.85 | S20: 38.37 | T20: 10.65833333 | U20: 11895.39 | V20: 49.8 | W20: 13.83333333 | X20: -23.6 | Y20: -18.8 | AC20: 100 | AD20: ОК
A21: 11 | O21: 8269.42 | P21: 34.62 | Q21: =P21/3.6 -> 9.616666667 | R21: 9164.85 | S21: 38.37 | T21: 10.65833333 | U21: 11895.39 | V21: 49.8 | W21: 13.83333333 | AC21: 0
A22: 12 | B22: 94.5553 | C22: 2.6917 | D22: 0.7482 | E22: 0.0937 | F22: 0.1136 | G22: 0.0013 | H22: 0.0267 | I22: 0.0219 | J22: 0.0318 | K22: 0.0136 | L22: 1.4377 | M22: 0.2645 | N22: 0.7089 | O22: 8169.34 | P22: 34.2 | Q22: 9.5 | R22: 9056.94 | S22: 37.919 | T22: 10.53305556 | U22: 11805.84 | V22: 49.429 | W22: 13.73027778 | AC22: 100 | AD22: ОК
A23: 13 | B23: 94.9159 | C23: 2.5238 | D23: 0.716 | E23: 0.0938 | F23: 0.1087 | G23: 0.0013 | H23: 0.0243 | I23: 0.0197 | J23: 0.0285 | K23: 0.0136 | L23: 1.299 | M23: 0.2554 | N23: 0.7064 | O23: 8163.63 | P23: 34.179 | Q23: =P23/3.6 -> 9.494166667 | R23: 9051.3 | S23: 37.896 | T23: 10.52666667 | U23: 11818.91 | V23: 49.48 | W23: 13.74444444 | X23: -20.7 | Y23: -15 | AC23: 100 | AD23: ОК
A24: 14 | B24: 95.8381 | C24: 2.1062 | D24: 0.6169 | E24: 0.0882 | F24: 0.0933 | G24: 0.0011 | H24: 0.02 | I24: 0.0151 | J24: 0.0178 | K24: 0.0151 | L24: 1.0006 | M24: 0.1876 | N24: 0.6996 | O24: 8144.88 | P24: 34.1 | Q24: =P24/3.6 -> 9.472222222 | R24: 9032.34 | S24: 37.82 | T24: 10.50555556 | U24: 11851.15 | V24: 49.62 | W24: 13.78333333 | X24: -20.8 | Y24: -15.3 | AC24: 100 | AD24: ОК
A25: 15 | B25: 95.9234 | C25: 2.0637 | D25: 0.6001 | E25: 0.0865 | F25: 0.0911 | G25: 0.0011 | H25: 0.0194 | I25: 0.0148 | J25: 0.0152 | K25: 0.0137 | L25: 0.988 | M25: 0.183 | N25: 0.6989 | O25: 8139.92 | P25: 34.08 | Q25: =P25/3.6 -> 9.466666667 | R25: 9027.09 | S25: 37.7946 | T25: 10.4985 | U25: 11850.48 | V25: 49.6156 | W25: 13.78211111 | X25: -20.9 | Y25: -15.5 | AC25: 100 | AD25: ОК
A26: 16 | B26: 95.6624 | C26: 2.1864 | D26: 0.627 | E26: 0.087 | F26: 0.0937 | G26: 0.0012 | H26: 0.02 | I26: 0.0155 | J26: 0.0168 | K26: 0.0134 | L26: 1.0778 | M26: 0.1987 | N26: 0.7007 | O26: 8143.88 | P26: 34.096 | Q26: 9.471111111 | R26: 9031 | S26: 37.81 | T26: 10.50277778 | U26: 11840.43 | V26: 49.57 | W26: 13.76944444 | X26: -21.7 | Y26: -16.3 | AB26: відсутні | AC26: 99.9999
A27: 17 | B27: 94.8066 | C27: 2.8171 | D27: 0.7939 | E27: 0.0998 | F27: 0.1137 | G27: 0.0015 | H27: 0.024 | I27: 0.0185 | J27: 0.0263 | K27: 0.0089 | L27: 1.0973 | M27: 0.1924 | N27: 0.7074 | O27: 8214.24 | P27: 34.39 | Q27: 9.552777778 | R27: 9106.36 | S27: 38.1265 | T27: 10.59069444 | U27: 11882.66 | V27: 49.75 | W27: 13.81944444 | X27: -22.3 | Y27: -16.8 | AC27: 100 | AD27: ОК
A28: 18 | O28: 8214.24 | P28: 34.39 | Q28: 9.552777778 | R28: 9106.36 | S28: 38.1265 | T28: 10.59069444 | U28: 11882.66 | V28: 49.75 | W28: 13.81944444 | AC28: 0
A29: 19 | O29: 8214.24 | P29: 34.39 | Q29: 9.552777778 | R29: 9106.36 | S29: 38.1265 | T29: 10.59069444 | U29: 11882.66 | V29: 49.75 | W29: 13.81944444 | AC29: 0
A30: 20 | B30: 95.0342 | C30: 2.7047 | D30: 0.7618 | E30: 0.0974 | F30: 0.1068 | G30: 0.0015 | H30: 0.0222 | I30: 0.0167 | J30: 0.022 | K30: 0.0088 | L30: 1.0481 | M30: 0.1758 | N30: 0.7055 | O30: 8204.52 | P30: 34.35 | Q30: 9.541666667 | R30: 9096.14 | S30: 38.08 | T30: 10.57777778 | U30: 11884.9 | V30: 49.759 | W30: 13.82194444 | X30: -21.3 | Y30: -15.5 | AC30: 100 | AD30: =IF(AC30=100,"ОК"," ") -> ОК
A31: 21 | B31: 95.3914 | C31: 2.5131 | D31: 0.7297 | E31: 0.0987 | F31: 0.106 | G31: 0.0015 | H31: 0.0217 | I31: 0.016 | J31: 0.0179 | K31: 0.0083 | L31: 0.9201 | M31: 0.1756 | N31: 0.7032 | O31: 8197.41 | P31: 34.32 | Q31: 9.533333333 | R31: 9088.92 | S31: 38.05 | T31: 10.56944444 | U31: 11894.72 | V31: 49.8 | W31: 13.83333333 | X31: -21.1 | Y31: -15 | AC31: 100 | AD31: ОК
A32: 22 | B32: 96.1232 | C32: 2.0702 | D32: 0.6302 | E32: 0.0961 | F32: 0.0992 | G32: 0.0016 | H32: 0.0202 | I32: 0.0146 | J32: 0.0148 | K32: 0.0075 | L32: 0.7608 | M32: 0.1618 | N32: 0.6982 | O32: 8167.79 | P32: 34.1969 | Q32: 9.499138889 | R32: 9057.75 | S32: 37.923 | T32: 10.53416667 | U32: 11896.75 | V32: 49.8093 | W32: 13.83591667 | X32: -21.3 | Y32: -15.2 | AC32: 100.0002
A33: 23 | B33: 96.382 | C33: 1.9018 | D33: 0.5737 | E33: 0.0858 | F33: 0.0868 | G33: 0.0012 | H33: 0.0166 | I33: 0.0119 | J33: 0.0109 | K33: 0.0091 | L33: 0.7717 | M33: 0.1485 | N33: 0.6958 | O33: 8143.28 | P33: 34.094 | Q33: 9.470555556 | R33: 9031.48 | S33: 37.81 | T33: 10.50277778 | U33: 11882.8 | V33: 49.751 | W33: 13.81972222 | X33: -19.6 | Y33: -14.1 | Z33: < 0,0001 | AA33: 0.0009 | AC33: 100 | AD33: =IF(AC33=100,"ОК"," ") -> ОК
A34: 24 | B34: 96.3078 | C34: 1.969 | D34: 0.5869 | E34: 0.0867 | F34: 0.0899 | G34: 0.0015 | H34: 0.018 | I34: 0.013 | J34: 0.0134 | K34: 0.0022 | L34: 0.7574 | M34: 0.1543 | N34: 0.6965 | O34: 8152.55 | P34: 34.133 | Q34: 9.481388889 | R34: 9041.44 | S34: 37.8547 | T34: 10.51519444 | U34: 11889.87 | V34: 49.78 | W34: =V34/3.6 -> 13.82777778 | X34: -19.5 | Y34: -14 | AC34: 100.0001
A35: 25 | O35: 8152.55 | P35: 34.133 | Q35: 9.481388889 | R35: 9041.44 | S35: 37.8547 | T35: 10.51519444 | U35: 11889.87 | V35: 49.78 | W35: =V35/3.6 -> 13.82777778 | AC35: 0
A36: 26 | O36: 8152.55 | P36: 34.133 | Q36: 9.481388889 | R36: 9041.44 | S36: 37.8547 | T36: 10.51519444 | U36: 11889.87 | V36: 49.78 | W36: 13.82777778 | AC36: 0
A37: 27 | B37: 96.0958 | C37: 2.0896 | D37: 0.6342 | E37: 0.0963 | F37: 0.0996 | G37: 0.0017 | H37: 0.0204 | I37: 0.0145 | J37: 0.0156 | K37: 0.0084 | L37: 0.7585 | M37: 0.1653 | N37: 0.6984 | O37: 8169.77 | P37: 34.205 | Q37: 9.501388889 | R37: 9059.85 | S37: 37.9318 | T37: 10.53661111 | U37: 11897.49 | V37: 49.812 | W37: 13.83666667 | X37: -21.7 | Y37: -16 | AC37: 99.9999
A38: 28 | B38: 96.0622 | C38: 2.0955 | D38: 0.6487 | E38: 0.0984 | F38: 0.1027 | G38: 0.0016 | H38: 0.0208 | I38: 0.0153 | J38: 0.0172 | K38: 0.0091 | L38: 0.7575 | M38: 0.1709 | N38: 0.6989 | O38: 8173.26 | P38: 34.2198 | Q38: 9.5055 | R38: 9063.58 | S38: 37.9474 | T38: 10.54094444 | U38: 11898.68 | V38: 49.8174 | W38: 13.83816667 | X38: -23 | Y38: -17.2 | AC38: 99.9999
A39: Рівень одоризації відповідає чинним нормативним документам | O39: =SUMPRODUCT(O11:O38,' розрахунок'!D6:D33)/' розрахунок'!D34 -> 8178.767189 | P39: =SUMPRODUCT(P11:P38,' розрахунок'!D6:D33)/' розрахунок'!D34 -> 34.24166172 | Q39: =SUMPRODUCT(Q11:Q38,' розрахунок'!D6:D33)/' розрахунок'!D34 -> 9.511572699 | R39: =SUMPRODUCT(R11:R38,' розрахунок'!D6:D33)/' розрахунок'!D34 -> 9067.923385 | S39: =SUMPRODUCT(S11:S38,' розрахунок'!D6:D33)/' розрахунок'!D34 -> 37.96452348 | T39: =SUMPRODUCT(T11:T38,' розрахунок'!D6:D33)/' розрахунок'!D34 -> 10.54570097
H40: Середньозважене значення теплоти згоряння:
B43: В.о.Начальника управління Херсонського ЛВУМГ Кузьмін Р.Ф.
C44: Підрозділу підприємства, якому підпорядкована лабораторія | O44: прізвище | U44: підпис | Y44: дата
B45: Завідувач лабораторії Камишанова О.С.
C46: Лабораторія, де здійснювалось вимірювання газу | O46: прізвище | U46: підпис | Y46: дата
B47: Начальник служби ГВ та М Скавронський Є.К.
C48: Підрозділу, відповідального за облік газу за маршрутом | O48: прізвище | U48: підпис | Y48: дата

Sheet розрахунок (hidden)
C2: Додаток до Паспорту фізико-хімічних показників природного газу по маршруту № 687
A3: Число місяця | B3: Теплота згоряння вища, МДж/м3 | C3: ХЕРСОНСЬКА область | D3: Загальний обсяг газу, м3
C5: ГРС Верхній Рогачик
A6: 1 | B6: 38 | C6: 20.048 | D6: =SUM(C6:C6) -> 20.048
A7: 2 | B7: 37.98 | C7: 18.905 | D7: 18.905
A8: 3 | B8: 37.92 | C8: 17.804 | D8: 17.804
A9: 4 | B9: 37.92 | C9: 15.985 | D9: 15.985
A10: 5 | B10: 37.92 | C10: 15.457 | D10: 15.457
A11: 6 | B11: 37.816 | C11: 15.834 | D11: 15.834
A12: 7 | B12: 37.86 | C12: 18.05 | D12: 18.05
A13: 8 | B13: 37.81 | C13: 19.547 | D13: 19.547
A14: 9 | B14: 37.95 | C14: 20.029 | D14: 20.029
A15: 10 | B15: 38.37 | C15: 20.217 | D15: 20.217
A16: 11 | B16: 38.37 | C16: 19.543 | D16: 19.543
A17: 12 | B17: 37.919 | C17: 18.445 | D17: 18.445
A18: 13 | B18: 37.896 | C18: 18.254 | D18: 18.254
A19: 14 | B19: 37.82 | C19: 18.289 | D19: 18.289
A20: 15 | B20: 37.7946 | C20: 17.209 | D20: 17.209
A21: 16 | B21: 37.81 | C21: 17.172 | D21: 17.172
A22: 17 | B22: 38.1265 | C22: 16.965 | D22: 16.965
A23: 18 | B23: 38.1265 | C23: 15.74 | D23: 15.74
A24: 19 | B24: 38.1265 | C24: 14.865 | D24: 14.865
A25: 20 | B25: 38.08 | C25: 13.928 | D25: 13.928
A26: 21 | B26: 38.05 | C26: 13.811 | D26: 13.811
A27: 22 | B27: 37.923 | C27: 13.676 | D27: 13.676
A28: 23 | B28: 37.81 | C28: 13.427 | D28: 13.427
A29: 24 | B29: 37.8547 | C29: 12.438 | D29: 12.438
A30: 25 | B30: 37.8547 | C30: 13.268 | D30: 13.268
A31: 26 | B31: 37.8547 | C31: 13.461 | D31: 13.461
A32: 27 | B32: 37.9318 | C32: 12.512 | D32: 12.512
A33: 28 | B33: 37.9474 | C33: 12.403 | D33: 12.403
A34: Загальний обсяг газу, м3 | C34: =SUM(C6:C33) -> 457.282 | D34: 457.282
A35: Енергія, МДж | C35: =SUMPRODUCT(B6:B33,C6:C33) -> 17360.49323 | D35: =SUMPRODUCT(B6:B33,D6:D33) -> 17360.49323
A36: Теплота згоряння (середньозважене значення за місяць), МДж/м³ | C36: =C35/C34 -> 37.96452348 | D36: =D35/D34 -> 37.96452348
A37: Теплота згоряння (середньозважене значення за місяць), ккал/м³ | C37: =C36*238.8459 -> 9067.670779 | D37: =D36*238.8459 -> 9067.670779
A38: Теплота згоряння (середньозважене значення за місяць), кВт*год./м³ | C38: =C36/3.6 -> 10.54570097 | D38: 10.54570097

Sheet додаток
A2: Додаток до Паспорту фізико-хімічних показників природного газу № 687
A4: Область | B4: ГРС, прямий споживач | C4: Cередньозважене значення вищої теплоти згоряння
C5: МДж/м³ | D5: ккал/м³ | E5: кВт*год./м³
A6: Херсонська область | B6: ГРС Верхній Рогачик | C6: 37.96 | D6: 9068 | E6: 10.55
A7: Середньозважене значення вищої теплоти згоряння по маршруту № 687 | C7: 37.96 | D7: 9068 | E7: 10.55
A11: В.о.Начальника управління Херсонського ЛВУМГ Кузьмін Р.Ф.
A12: Підрозділу підприємства, якому підпорядкована лабораторія | D12: прізвище | E12: підпис | F12: дата
A14: Завідувач лабораторії Камишанова О.С.
A15: Лабораторія, де здійснювалось вимірювання газу | D15: прізвище | E15: підпис | F15: дата
A17: Начальник служби ГВ та М Скавронський Є.К.
A18: Підрозділу, відповідального за облік газу за маршрутом | D18: прізвище | E18: підпис | F18: дата

Sheet variablesList (hidden)
A1: 3 | B1: x:\gaysin | C1: 10, 11, 24, 25, 127, 128, 132, 180, 207, 215 | D1: x:\
B2: x:\Illinci
B3: x:\Talne
